[Event "44th Chess Olympiad Open 2022"]
[Site "Chennai"]
[Date "2022.08.08"]
[Round "10.84"]
[White "Ahmad, Md Siraj Munir"]
[Black "Klaas Tokelo"]
[Result "1-0"]
[WhiteElo "2035"]
[BlackElo "1812"]
[Annotator "NA RC"]
[PlyCount "91"]
[EventDate "2022.??.??"]
[TimeControl "60"]

1. e4 {[%emt 0:00:05]} c5 {[%emt 0:01:44]} 2. Nf3 {[%emt 0:00:27]} Nc6 {
[%emt 0:00:54]} 3. Bb5 {[%emt 0:01:25]} g6 {[%emt 0:01:07]} 4. Bxc6 {[%emt 0:
00:00]} dxc6 {[%emt 0:00:14]} 5. O-O {[%emt 0:02:02]} Bg7 {[%emt 0:00:11]} 6.
d3 {[%emt 0:01:48]} Nf6 {[%emt 0:00:37]} 7. Nc3 {[%emt 0:02:15]} O-O {[%emt 0:
00:00]} 8. Be3 {[%emt 0:01:21]} b6 {[%emt 0:00:20]} 9. h3 {[%emt 0:01:36]} Qc7
{[%emt 0:05:57]} 10. Qd2 {[%emt 0:04:55]} e5 {[%emt 0:00:50]} 11. a4 {[%emt 0:
00:00]} a5 {[%emt 0:00:21]} 12. Nh2 {[%emt 0:05:01]} Nh5 {[%emt 0:03:38]} 13.
Ne2 {[%emt 0:07:27]} Be6 {[%emt 0:11:37]} 14. g4 {[%emt 0:21:46]} Nf6 {[%emt 0:
00:00]} 15. f4 {[%emt 0:00:28]} exf4 {[%emt 0:00:26]} 16. Bxf4 {[%emt 0:00:24]}
Qd7 {[%emt 0:03:50]} 17. Bh6 {[%emt 0:06:29]} Ne8 {[%emt 0:13:02]} 18. Bxg7 {
[%emt 0:05:36]} Kxg7 {[%emt 0:00:58]} 19. Qc3+ {[%emt 0:04:41]} Kg8 {[%emt 0:
00:00]} 20. Nf3 {[%emt 0:00:20]} Rd8 {[%emt 0:07:26]} 21. Rf2 {[%emt 0:00:25]}
Qe7 {[%emt 0:06:04]} 22. Raf1 {[%emt 0:00:27]} f6 {[%emt 0:01:43]} 23. Ng5 {
[%emt 0:05:32]} Bf7 {[%emt 0:08:51]} 24. Nxf7 {[%emt 0:01:00]} Rxf7 {[%emt 0:
00:00]} 25. e5 {[%emt 0:01:21]} Rd5 {[%emt 0:01:23]} 26. exf6 {[%emt 0:01:45]}
Qe5 {[%emt 0:06:27]} 27. Qxe5 {[%emt 0:00:59]} Rxe5 {[%emt 0:00:08]} 28. Nc3 {
[%emt 0:02:11]} h6 {[%emt 0:01:13]} 29. h4 {[%emt 0:00:52]} g5 {[%emt 0:00:28]}
30. hxg5 {[%emt 0:01:10]} hxg5 {[%emt 0:03:51]} 31. Ne4 {[%emt 0:00:31]} c4 {
[%emt 0:06:04]} 32. Rf5 {[%emt 0:00:43]} Rxf5 {[%emt 0:01:04]} 33. Rxf5 {
[%emt 0:00:07]} cxd3 {[%emt 0:00:53]} 34. cxd3 {[%emt 0:00:36]} Kf8 {[%emt 0:
00:00]} 35. Kf2 {[%emt 0:01:15]} Rd7 {[%emt 0:00:27]} 36. Nxg5 {[%emt 0:03:00]}
Nxf6 {[%emt 0:02:25]} 37. Rxf6+ {[%emt 0:00:15]} Kg7 {[%emt 0:00:14]} 38. Rxc6
{[%emt 0:01:03]} Rxd3 {[%emt 0:00:23]} 39. Rxb6 {[%emt 0:00:14]} Rd5 {[%emt 0:
00:00]} 40. Rb5 {[%emt 0:00:45]} Rd2+ {[%emt 0:00:17]} 41. Ke3 {[%emt 0:30:30]}
Rg2 {[%emt 0:30:21]} 42. Kf4 {[%emt 0:00:12]} Rf2+ {[%emt 0:00:27]} 43. Nf3 {
[%emt 0:00:37]} Rc2 {[%emt 0:00:12]} 44. Kg5 {[%emt 0:00:38]} Rf2 {[%emt 0:00:
00]} 45. Ne5 {[%emt 0:00:13]} Kf8 {[%emt 0:00:13]} 46. Nc6 {[%emt 0:00:25]} 1-0

[Event "44th Chess Olympiad Open 2022"]
[Site "Chennai"]
[Date "2022.08.08"]
[Round "10.84"]
[White "Khalema, Sechaba"]
[Black "Yussof, Pg Abd Rahman"]
[Result "1-0"]
[WhiteElo "1790"]
[BlackElo "1804"]
[Annotator "NA RC"]
[PlyCount "69"]
[EventDate "2022.??.??"]
[TimeControl "60"]

1. d4 {[%emt 0:00:31]} d5 {[%emt 0:00:14]} 2. c4 {[%emt 0:00:18]} c6 {[%emt 0:
00:00]} 3. cxd5 {[%emt 0:00:14]} cxd5 {[%emt 0:00:19]} 4. Bf4 {[%emt 0:00:03]}
Nc6 {[%emt 0:01:05]} 5. e3 {[%emt 0:00:07]} e6 {[%emt 0:01:13]} 6. Bd3 {
[%emt 0:00:09]} Nf6 {[%emt 0:03:25]} 7. Ne2 {[%emt 0:00:07]} Be7 {[%emt 0:00:
00]} 8. Nbc3 {[%emt 0:00:10]} a6 {[%emt 0:01:46]} 9. O-O {[%emt 0:00:10]} O-O {
[%emt 0:00:17]} 10. Rc1 {[%emt 0:00:18]} Nh5 {[%emt 0:02:03]} 11. Bb1 {[%emt 0:
00:00]} f5 {[%emt 0:00:33]} 12. h3 {[%emt 0:00:07]} Qe8 {[%emt 0:04:07]} 13.
Kh1 {[%emt 0:00:25]} Kh8 {[%emt 0:02:47]} 14. Bh2 {[%emt 0:00:08]} Bg5 {
[%emt 0:03:22]} 15. f4 {[%emt 0:03:34]} Be7 {[%emt 0:06:36]} 16. g4 {[%emt 0:
00:00]} fxg4 {[%emt 0:01:09]} 17. hxg4 {[%emt 0:00:17]} Nf6 {[%emt 0:03:10]}
18. Rg1 {[%emt 0:00:16]} Bd7 {[%emt 0:05:03]} 19. Ng3 {[%emt 0:00:32]} e5 {
[%emt 0:01:36]} 20. f5 {[%emt 0:04:14]} exd4 {[%emt 0:01:31]} 21. exd4 {
[%emt 0:00:12]} Qf7 {[%emt 0:06:04]} 22. Nge2 {[%emt 0:00:43]} b5 {[%emt 0:00:
00]} 23. Nf4 {[%emt 0:00:07]} Na5 {[%emt 0:03:00]} 24. Qf3 {[%emt 0:01:45]} Nc4
{[%emt 0:02:14]} 25. Rg2 {[%emt 0:01:15]} Bd6 {[%emt 0:05:15]} 26. Ng6+ {
[%emt 0:00:20]} Kg8 {[%emt 0:03:37]} 27. Nxf8 {[%emt 0:01:38]} Kxf8 {[%emt 0:
00:00]} 28. Re1 {[%emt 0:01:31]} b4 {[%emt 0:02:54]} 29. Nd1 {[%emt 0:00:38]}
Bxh2 {[%emt 0:04:49]} 30. Rxh2 {[%emt 0:00:21]} Bc6 {[%emt 0:00:23]} 31. g5 {
[%emt 0:00:47]} Ng8 {[%emt 0:03:14]} 32. Rh4 {[%emt 0:00:05]} h6 33. Rxh6 {
[%emt 0:00:31]} Nd2 {[%emt 0:01:23]} 34. Rh7 {[%emt 0:00:14]} Nc4 {[%emt 0:00:
00]} 35. Qf4 {[%emt 0:00:08]} 1-0

[Event "44th Chess Olympiad Open 2022"]
[Site "Chennai"]
[Date "2022.08.08"]
[Round "10.84"]
[White "Sharikhan, Shawal"]
[Black "Ntsonyana, Bahlakoana"]
[Result "0-1"]
[WhiteElo "1789"]
[BlackElo "1454"]
[Annotator "NA RC"]
[PlyCount "87"]
[EventDate "2022.??.??"]
[TimeControl "60"]

1. Nf3 {[%emt 0:00:32]} Nf6 {[%emt 0:00:14]} 2. c4 {[%emt 0:00:06]} c5 {
[%emt 0:00:18]} 3. Nc3 {[%emt 0:00:21]} Nc6 {[%emt 0:00:40]} 4. d4 {[%emt 0:00:
00]} cxd4 {[%emt 0:00:39]} 5. Nxd4 {[%emt 0:00:12]} e6 {[%emt 0:01:27]} 6. Ndb5
{[%emt 0:03:33]} a6 {[%emt 0:05:17]} 7. Nd6+ {[%emt 0:02:02]} Bxd6 {[%emt 0:00:
00]} 8. Qxd6 {[%emt 0:00:09]} Qe7 {[%emt 0:00:10]} 9. Qxe7+ {[%emt 0:03:53]}
Kxe7 {[%emt 0:01:34]} 10. Bg5 {[%emt 0:00:24]} h6 {[%emt 0:00:30]} 11. Bh4 {
[%emt 0:00:05]} g5 {[%emt 0:00:14]} 12. Bg3 {[%emt 0:00:05]} Nh5 {[%emt 0:00:
00]} 13. Bc7 {[%emt 0:02:45]} f5 {[%emt 0:01:02]} 14. O-O-O {[%emt 0:01:18]}
Ra7 {[%emt 0:02:17]} 15. Bb6 {[%emt 0:01:50]} Ra8 {[%emt 0:00:20]} 16. e4 {
[%emt 0:02:13]} Re8 {[%emt 0:02:39]} 17. g3 {[%emt 0:03:39]} fxe4 {[%emt 0:00:
00]} 18. Nxe4 {[%emt 0:01:02]} d5 {[%emt 0:00:44]} 19. Bc5+ {[%emt 0:05:03]}
Kd8 {[%emt 0:00:25]} 20. Nd6 {[%emt 0:07:40]} Rg8 {[%emt 0:02:05]} 21. Bg2 {
[%emt 0:08:28]} d4 {[%emt 0:07:23]} 22. Bxc6 {[%emt 0:07:03]} bxc6 {[%emt 0:00:
00]} 23. Bxd4 {[%emt 0:01:15]} Kc7 {[%emt 0:01:24]} 24. c5 {[%emt 0:02:00]} a5
{[%emt 0:02:42]} 25. h4 {[%emt 0:01:02]} g4 {[%emt 0:00:34]} 26. Rhe1 {[%emt 0:
00:00]} Bd7 {[%emt 0:10:33]} 27. Be5 {[%emt 0:02:28]} Rgf8 {[%emt 0:05:32]} 28.
Rd2 {[%emt 0:07:31]} Kd8 {[%emt 0:08:58]} 29. Red1 {[%emt 0:03:14]} Ra7 {
[%emt 0:00:44]} 30. Nc4 {[%emt 0:00:58]} Rf5 {[%emt 0:02:54]} 31. Bd6 {[%emt 0:
00:00]} Nf6 {[%emt 0:01:52]} 32. Ne5 {[%emt 0:02:41]} Ne4 {[%emt 0:00:46]} 33.
Re2 {[%emt 0:05:52]} Nxf2 {[%emt 0:14:04]} 34. Rd4 {[%emt 0:01:26]} h5 {
[%emt 0:01:13]} 35. Nc4 {[%emt 0:07:42]} Nh3 {[%emt 0:03:36]} 36. Bb8 {[%emt 0:
00:00]} Rb7 {[%emt 0:00:55]} 37. Nxa5 {[%emt 0:02:06]} Rxc5+ {[%emt 0:00:36]}
38. Nc4 {[%emt 0:01:15]} Rxb8 {[%emt 0:00:21]} 39. Rxe6 {[%emt 0:00:20]} Rxc4+
{[%emt 0:00:24]} 40. Rxc4 {[%emt 0:00:38]} Bxe6 {[%emt 0:00:14]} 41. Rd4+ {
[%emt 0:30:29]} Kc7 {[%emt 0:30:57]} 42. Ra4 {[%emt 0:00:23]} Rb5 {[%emt 0:00:
00]} 43. a3 {[%emt 0:00:10]} Bb3 {[%emt 0:01:50]} 44. Re4 {[%emt 0:00:18]} 0-1

[Event "44th Chess Olympiad Open 2022"]
[Site "Chennai"]
[Date "2022.08.08"]
[Round "10.86"]
[White "Marie, Patrick"]
[Black "Stanley, Samson P."]
[Result "1-0"]
[WhiteElo "1921"]
[BlackElo "1877"]
[Annotator "NA RC"]
[PlyCount "25"]
[EventDate "2022.??.??"]
[TimeControl "60"]

1. e4 {[%emt 0:00:04]} e6 {[%emt 0:00:22]} 2. d4 {[%emt 0:00:07]} d5 {[%emt 0:
00:00]} 3. Nd2 {[%emt 0:00:10]} Nf6 {[%emt 0:00:40]} 4. e5 {[%emt 0:01:26]} Bb4
{[%emt 0:01:12]} 5. exf6 {[%emt 0:00:37]} Bxd2+ {[%emt 0:00:14]} 6. Bxd2 {
[%emt 0:00:14]} gxf6 {[%emt 0:00:38]} 7. Nf3 {[%emt 0:00:22]} Nc6 {[%emt 0:00:
00]} 8. Bb5 {[%emt 0:00:13]} O-O {[%emt 0:01:09]} 9. Bh6 {[%emt 0:01:54]} a6 {
[%emt 0:01:17]} 10. Bxc6 {[%emt 0:00:03]} bxc6 {[%emt 0:00:52]} 11. Ne5 {
[%emt 0:00:52]} fxe5 {[%emt 0:09:05]} 12. Qg4+ {[%emt 0:00:16]} Kh8 {[%emt 0:
00:00]} 13. Qg7# {[%emt 0:00:03]} 1-0

[Event "44th Chess Olympiad Open 2022"]
[Site "Chennai"]
[Date "2022.08.08"]
[Round "10.87"]
[White "Mimbasa Kutesa, Willy"]
[Black "Bansal, Nayan"]
[Result "1-0"]
[WhiteElo "1755"]
[BlackElo "1444"]
[Annotator "NA RC"]
[PlyCount "61"]
[EventDate "2022.??.??"]
[TimeControl "60"]

1. d4 {[%emt 0:00:22]} d5 {[%emt 0:00:24]} 2. c4 {[%emt 0:00:21]} Nf6 {[%emt 0:
00:00]} 3. Nc3 {[%emt 0:00:46]} Bf5 {[%emt 0:00:40]} 4. Qb3 {[%emt 0:01:21]}
Nc6 {[%emt 0:01:52]} 5. Nf3 {[%emt 0:01:32]} Na5 {[%emt 0:03:20]} 6. Qa4+ {
[%emt 0:00:45]} c6 {[%emt 0:00:53]} 7. cxd5 {[%emt 0:00:54]} Nxd5 {[%emt 0:00:
00]} 8. Nxd5 {[%emt 0:01:11]} Qxd5 {[%emt 0:00:24]} 9. e3 {[%emt 0:01:33]} b6 {
[%emt 0:08:38]} 10. Bd2 {[%emt 0:00:38]} Nb7 {[%emt 0:01:13]} 11. Ne5 {[%emt 0:
00:00]} Bd7 {[%emt 0:02:22]} 12. Bc4 {[%emt 0:02:33]} Qxg2 {[%emt 0:02:45]} 13.
Bxf7+ {[%emt 0:00:33]} Kd8 {[%emt 0:00:26]} 14. O-O-O {[%emt 0:00:13]} a5 {
[%emt 0:14:04]} 15. f3 {[%emt 0:01:53]} b5 {[%emt 0:01:30]} 16. Qc2 {[%emt 0:
00:00]} Qh3 {[%emt 0:04:48]} 17. Kb1 {[%emt 0:03:01]} Rc8 {[%emt 0:02:58]} 18.
Bb3 {[%emt 0:02:04]} Be6 {[%emt 0:17:17]} 19. e4 {[%emt 0:04:12]} Bxb3 {
[%emt 0:07:21]} 20. Qxb3 {[%emt 0:00:31]} a4 {[%emt 0:01:09]} 21. Qc2 {[%emt 0:
00:00]} Ke8 {[%emt 0:02:30]} 22. Nxc6 {[%emt 0:00:36]} e6 {[%emt 0:02:34]} 23.
d5 {[%emt 0:00:35]} exd5 {[%emt 0:01:53]} 24. exd5 {[%emt 0:00:18]} Bd6 {
[%emt 0:05:24]} 25. Qe4+ {[%emt 0:01:51]} Kd7 {[%emt 0:01:33]} 26. Rhg1 {
[%emt 0:00:34]} g6 {[%emt 0:01:11]} 27. Bc3 {[%emt 0:01:59]} Rce8 {[%emt 0:00:
00]} 28. Qd3 {[%emt 0:00:46]} Nc5 {[%emt 0:09:48]} 29. Qxb5 {[%emt 0:01:01]}
Qf5+ {[%emt 0:00:17]} 30. Ka1 {[%emt 0:00:27]} Nb3+ {[%emt 0:01:02]} 31. axb3 {
[%emt 0:00:20]} 1-0

[Event "44th Chess Olympiad Open 2022"]
[Site "Chennai"]
[Date "2022.08.08"]
[Round "10.87"]
[White "Masiala Mayuku, Eddy"]
[Black "Hair, Justin M"]
[Result "1-0"]
[WhiteElo "1574"]
[BlackElo "1505"]
[Annotator "NA RC"]
[PlyCount "95"]
[EventDate "2022.??.??"]
[TimeControl "60"]

1. d4 {[%emt 0:00:05]} Nf6 {[%emt 0:00:10]} 2. Nf3 {[%emt 0:00:14]} e6 {
[%emt 0:00:24]} 3. g3 {[%emt 0:00:36]} d5 {[%emt 0:00:24]} 4. Bg2 {[%emt 0:00:
00]} c5 {[%emt 0:00:18]} 5. c3 {[%emt 0:00:15]} Bd7 {[%emt 0:01:13]} 6. O-O {
[%emt 0:00:24]} Nc6 {[%emt 0:00:42]} 7. Re1 {[%emt 0:00:12]} Be7 {[%emt 0:00:
00]} 8. Nbd2 {[%emt 0:00:24]} O-O {[%emt 0:00:40]} 9. e4 {[%emt 0:00:19]} cxd4
{[%emt 0:02:23]} 10. cxd4 {[%emt 0:00:48]} dxe4 {[%emt 0:00:22]} 11. Nxe4 {
[%emt 0:00:41]} Rc8 {[%emt 0:00:58]} 12. b3 {[%emt 0:00:54]} Nb4 {[%emt 0:00:
00]} 13. Re2 {[%emt 0:01:14]} Bb5 {[%emt 0:01:08]} 14. Nxf6+ {[%emt 0:00:31]}
Bxf6 {[%emt 0:00:38]} 15. Rd2 {[%emt 0:00:17]} Nd5 {[%emt 0:01:47]} 16. Bb2 {
[%emt 0:00:56]} Qd6 {[%emt 0:02:43]} 17. a3 {[%emt 0:01:26]} Rc7 {[%emt 0:00:
00]} 18. Rc1 {[%emt 0:00:42]} Rfc8 {[%emt 0:01:11]} 19. Rdc2 {[%emt 0:00:34]}
Qb6 {[%emt 0:04:08]} 20. Qd2 {[%emt 0:03:13]} Bc6 {[%emt 0:07:20]} 21. b4 {
[%emt 0:01:28]} Ba4 {[%emt 0:02:10]} 22. Rc5 {[%emt 0:00:51]} Qd6 {[%emt 0:00:
00]} 23. h4 {[%emt 0:03:02]} b6 {[%emt 0:00:58]} 24. Rxc7 {[%emt 0:00:22]} Rxc7
{[%emt 0:00:31]} 25. Ne5 {[%emt 0:00:43]} Rxc1+ {[%emt 0:06:17]} 26. Qxc1 {
[%emt 0:00:34]} Ne7 {[%emt 0:04:56]} 27. f4 {[%emt 0:01:42]} Nf5 {[%emt 0:00:
00]} 28. Qc3 {[%emt 0:03:12]} h5 {[%emt 0:02:10]} 29. Kh2 {[%emt 0:00:39]} Bb5
{[%emt 0:03:11]} 30. Be4 {[%emt 0:00:58]} g6 {[%emt 0:01:56]} 31. Qc8+ {
[%emt 0:02:42]} Qd8 {[%emt 0:03:01]} 32. Qxd8+ {[%emt 0:07:35]} Bxd8 {[%emt 0:
00:00]} 33. Bxf5 {[%emt 0:00:21]} gxf5 {[%emt 0:00:46]} 34. Nf3 {[%emt 0:01:23]
} Bf6 {[%emt 0:00:43]} 35. Kg1 {[%emt 0:00:25]} Kf8 {[%emt 0:00:17]} 36. Kf2 {
[%emt 0:00:41]} Ke7 {[%emt 0:00:12]} 37. Ke3 {[%emt 0:00:53]} Kd6 {[%emt 0:00:
00]} 38. Bc3 {[%emt 0:03:57]} Kd5 {[%emt 0:00:18]} 39. Nd2 {[%emt 0:00:28]} Kc6
{[%emt 0:02:19]} 40. Bb2 {[%emt 0:01:17]} Ba6 {[%emt 0:00:46]} 41. a4 {[%emt 0:
00:00]} Kd5 {[%emt 0:34:15]} 42. Bc3 {[%emt 0:00:32]} Bb7 {[%emt 0:02:04]} 43.
Kd3 {[%emt 0:00:40]} Ba6+ {[%emt 0:03:00]} 44. b5 {[%emt 0:00:55]} Bb7 {
[%emt 0:01:02]} 45. Nc4 {[%emt 0:02:07]} Be7 {[%emt 0:01:24]} 46. Ne5 {[%emt 0:
00:00]} f6 {[%emt 0:02:20]} 47. Ng6 {[%emt 0:00:46]} Bc8 {[%emt 0:00:51]} 48.
Nxe7+ {[%emt 0:01:25]} 1-0

[Event "44th Chess Olympiad Open 2022"]
[Site "Chennai"]
[Date "2022.08.08"]
[Round "10.88"]
[White "Escalante Ramirez, Brian Sebasti"]
[Black "Montel Jr, Cyril Tomas"]
[Result "1-0"]
[WhiteElo "2496"]
[BlackElo "1827"]
[Annotator "RC"]
[PlyCount "91"]
[EventDate "2022.??.??"]
[TimeControl "60"]

1. c4 {[%emt 0:00:07]} e5 {[%emt 0:00:04]} 2. Nc3 {[%emt 0:00:09]} Nf6 {
[%emt 0:00:06]} 3. g3 {[%emt 0:00:12]} Nc6 {[%emt 0:00:07]} 4. Bg2 {[%emt 0:00:
00]} Bb4 {[%emt 0:00:05]} 5. e3 {[%emt 0:00:20]} Bxc3 {[%emt 0:00:41]} 6. bxc3
{[%emt 0:00:11]} d6 {[%emt 0:00:11]} 7. Rb1 {[%emt 0:00:45]} O-O {[%emt 0:00:
00]} 8. Ne2 {[%emt 0:03:28]} e4 {[%emt 0:03:12]} 9. O-O {[%emt 0:00:00]} Ne5 {
[%emt 0:00:21]} 10. Nd4 {[%emt 0:05:20]} c5 {[%emt 0:03:21]} 11. Nb5 {[%emt 0:
00:00]} Nxc4 {[%emt 0:00:41]} 12. d3 {[%emt 0:01:04]} exd3 {[%emt 0:01:51]} 13.
Qxd3 {[%emt 0:00:32]} d5 {[%emt 0:02:31]} 14. Rd1 {[%emt 0:08:54]} Ne5 {
[%emt 0:04:24]} 15. Qe2 {[%emt 0:03:45]} Bf5 {[%emt 0:04:56]} 16. Rb2 {[%emt 0:
00:00]} a6 {[%emt 0:00:54]} 17. Na3 {[%emt 0:04:13]} b5 {[%emt 0:00:25]} 18.
Rbd2 {[%emt 0:02:00]} Ne4 {[%emt 0:07:01]} 19. Rc2 {[%emt 0:20:25]} c4 {
[%emt 0:03:09]} 20. f3 {[%emt 0:05:22]} Nf6 {[%emt 0:10:13]} 21. e4 {[%emt 0:
00:00]} Be6 {[%emt 0:00:26]} 22. exd5 {[%emt 0:02:09]} Bf5 {[%emt 0:10:47]} 23.
Qxe5 {[%emt 0:03:59]} Bxc2 {[%emt 0:00:58]} 24. Nxc2 {[%emt 0:00:08]} Re8 {
[%emt 0:00:06]} 25. Qd4 {[%emt 0:00:09]} Re2 {[%emt 0:00:30]} 26. Nb4 {[%emt 0:
00:00]} Qe7 {[%emt 0:03:03]} 27. Bg5 {[%emt 0:02:20]} Re1+ {[%emt 0:05:28]} 28.
Bf1 {[%emt 0:01:28]} Re8 {[%emt 0:03:35]} 29. d6 {[%emt 0:12:02]} Qe2 {[%emt 0:
00:00]} 30. Rxe1 {[%emt 0:01:04]} Qxe1 {[%emt 0:00:12]} 31. Bxf6 {[%emt 0:00:
00]} gxf6 {[%emt 0:00:24]} 32. d7 {[%emt 0:00:15]} Rd8 {[%emt 0:01:57]} 33. Nc6
{[%emt 0:00:38]} Rxd7 {[%emt 0:00:05]} 34. Qxd7 {[%emt 0:00:21]} Qxc3 {[%emt 0:
00:00]} 35. Ne7+ {[%emt 0:00:52]} Kf8 {[%emt 0:00:23]} 36. Nf5 {[%emt 0:00:26]}
Qe5 {[%emt 0:00:47]} 37. Qd8+ {[%emt 0:00:38]} Qe8 {[%emt 0:00:05]} 38. Qxe8+ {
[%emt 0:00:16]} Kxe8 {[%emt 0:00:04]} 39. Nd6+ {[%emt 0:00:19]} Ke7 {[%emt 0:
00:00]} 40. Nxc4 {[%emt 0:00:21]} bxc4 {[%emt 0:00:12]} 41. Bxc4 {[%emt 0:00:
00]} a5 {[%emt 0:30:04]} 42. a4 {[%emt 0:00:15]} f5 {[%emt 0:00:10]} 43. Kf2 {
[%emt 0:00:12]} f6 {[%emt 0:00:33]} 44. Ke3 {[%emt 0:00:17]} Kd6 {[%emt 0:00:
00]} 45. Kf4 {[%emt 0:00:15]} Kc5 {[%emt 0:00:02]} 46. Bb5 {[%emt 0:00:14]} 1-0

[Event "44th Chess Olympiad Open 2022"]
[Site "Chennai"]
[Date "2022.08.08"]
[Round "10.88"]
[White "Tan, Santiago Jr"]
[Black "Enemchukwu Chinedu Benjamin"]
[Result "0-1"]
[WhiteElo "1872"]
[BlackElo "1889"]
[Annotator "NA RC"]
[PlyCount "98"]
[EventDate "2022.??.??"]
[TimeControl "60"]

1. e4 {[%emt 0:00:08]} c5 {[%emt 0:00:05]} 2. Nf3 {[%emt 0:00:15]} d6 {[%emt 0:
00:00]} 3. c3 {[%emt 0:00:14]} Nf6 {[%emt 0:00:39]} 4. h3 {[%emt 0:00:27]} g6 {
[%emt 0:00:08]} 5. d3 {[%emt 0:00:57]} Bg7 {[%emt 0:00:07]} 6. Be2 {[%emt 0:00:
00]} Nc6 {[%emt 0:00:05]} 7. Be3 {[%emt 0:00:19]} O-O {[%emt 0:00:22]} 8. Nbd2
{[%emt 0:00:36]} a6 {[%emt 0:00:45]} 9. Rc1 {[%emt 0:01:04]} b5 {[%emt 0:00:34]
} 10. a3 {[%emt 0:00:15]} Bb7 {[%emt 0:00:18]} 11. O-O {[%emt 0:00:25]} e5 {
[%emt 0:01:15]} 12. Re1 {[%emt 0:00:36]} Re8 {[%emt 0:00:14]} 13. Nf1 {[%emt 0:
00:00]} Nh5 {[%emt 0:03:29]} 14. Qd2 {[%emt 0:02:41]} Rc8 {[%emt 0:01:33]} 15.
g4 {[%emt 0:00:19]} Nf6 {[%emt 0:01:07]} 16. Ng3 {[%emt 0:00:41]} Qd7 {[%emt 0:
00:00]} 17. Kg2 {[%emt 0:01:01]} Nd8 {[%emt 0:00:58]} 18. g5 {[%emt 0:01:38]}
Nh5 {[%emt 0:00:06]} 19. Nxh5 {[%emt 0:00:14]} gxh5 {[%emt 0:00:12]} 20. Nh4 {
[%emt 0:00:17]} d5 {[%emt 0:00:28]} 21. Qc2 {[%emt 0:01:11]} f5 {[%emt 0:02:34]
} 22. Bxh5 {[%emt 0:04:57]} dxe4 {[%emt 0:03:09]} 23. Qb3+ {[%emt 0:01:02]} Re6
{[%emt 0:02:25]} 24. dxe4 {[%emt 0:00:56]} c4 {[%emt 0:05:54]} 25. Rcd1 {
[%emt 0:02:45]} Bxe4+ {[%emt 0:01:26]} 26. f3 {[%emt 0:00:34]} Bd3 {[%emt 0:00:
00]} 27. Qa2 {[%emt 0:01:04]} Rd6 {[%emt 0:01:16]} 28. Qa1 {[%emt 0:00:42]} Ne6
{[%emt 0:00:46]} 29. g6 {[%emt 0:05:02]} h6 {[%emt 0:04:38]} 30. Qc1 {[%emt 0:
00:00]} Qe7 {[%emt 0:00:18]} 31. Rxd3 {[%emt 0:01:26]} Rxd3 {[%emt 0:01:07]}
32. Nxf5 {[%emt 0:00:22]} Qf6 {[%emt 0:00:57]} 33. Ng3 {[%emt 0:03:06]} Nf4+ {
[%emt 0:01:09]} 34. Bxf4 {[%emt 0:00:30]} exf4 {[%emt 0:01:22]} 35. Ne4 {
[%emt 0:00:26]} Qh4 {[%emt 0:00:38]} 36. Bg4 {[%emt 0:00:26]} Rf8 {[%emt 0:00:
00]} 37. Rf1 {[%emt 0:00:49]} h5 {[%emt 0:00:27]} 38. Be6+ {[%emt 0:00:42]} Kh8
{[%emt 0:00:07]} 39. Bf7 {[%emt 0:00:13]} Rfd8 {[%emt 0:00:29]} 40. Qc2 {
[%emt 0:05:11]} Be5 {[%emt 0:01:09]} 41. a4 {[%emt 0:30:45]} Kg7 {[%emt 0:00:
00]} 42. axb5 {[%emt 0:03:41]} axb5 {[%emt 0:00:14]} 43. Qf2 {[%emt 0:00:34]}
Qe7 {[%emt 0:01:19]} 44. Re1 {[%emt 0:01:15]} Bb8 {[%emt 0:01:47]} 45. Qc5 {
[%emt 0:09:49]} Rd2+ {[%emt 0:01:22]} 46. Kf1 {[%emt 0:01:21]} Qh4 {[%emt 0:00:
00]} 47. Nxd2 {[%emt 0:05:20]} Qxh3+ {[%emt 0:00:31]} 48. Kg1 {[%emt 0:02:45]}
Rxd2 {[%emt 0:00:31]} 49. Re2 {[%emt 0:00:42]} Rd1+ {[%emt 0:00:32]} 0-1

[Event "44th Chess Olympiad Open 2022"]
[Site "Chennai"]
[Date "2022.08.08"]
[Round "10.89"]
[White "Ramachandran, R..."]
[Black "Dabuae, David"]
[Result "0-1"]
[WhiteElo "1994"]
[BlackElo "1707"]
[Annotator "NA RC"]
[PlyCount "60"]
[EventDate "2022.??.??"]
[TimeControl "60"]

1. d4 {[%emt 0:00:04]} Nf6 {[%emt 0:00:03]} 2. Bf4 {[%emt 0:00:23]} d6 {
[%emt 0:00:23]} 3. e3 {[%emt 0:00:39]} c6 {[%emt 0:00:05]} 4. Nf3 {[%emt 0:00:
00]} h6 {[%emt 0:00:27]} 5. h3 {[%emt 0:00:29]} g5 {[%emt 0:00:20]} 6. Bh2 {
[%emt 0:01:13]} Bg7 {[%emt 0:00:06]} 7. Bd3 {[%emt 0:00:42]} Qa5+ {[%emt 0:00:
00]} 8. Nbd2 {[%emt 0:00:35]} h5 {[%emt 0:00:38]} 9. c3 {[%emt 0:04:15]} g4 {
[%emt 0:00:18]} 10. hxg4 {[%emt 0:00:58]} hxg4 {[%emt 0:00:20]} 11. Nc4 {
[%emt 0:04:51]} Qd5 {[%emt 0:00:36]} 12. Qe2 {[%emt 0:10:34]} gxf3 {[%emt 0:00:
00]} 13. gxf3 {[%emt 0:00:40]} b5 {[%emt 0:00:53]} 14. Nd2 {[%emt 0:00:37]} Bh3
{[%emt 0:02:53]} 15. c4 {[%emt 0:00:57]} bxc4 {[%emt 0:00:45]} 16. Bxc4 {
[%emt 0:00:44]} Qa5 {[%emt 0:00:31]} 17. O-O-O {[%emt 0:07:26]} Bg2 {[%emt 0:
00:00]} 18. Nb3 {[%emt 0:04:47]} Qf5 {[%emt 0:01:14]} 19. Nd2 {[%emt 0:03:27]}
Bxh1 {[%emt 0:00:28]} 20. Rxh1 {[%emt 0:01:35]} Nbd7 {[%emt 0:00:17]} 21. Qf1 {
[%emt 0:01:46]} Rb8 {[%emt 0:00:27]} 22. Rg1 {[%emt 0:02:18]} Bf8 {[%emt 0:00:
00]} 23. Bd3 {[%emt 0:01:00]} Qa5 {[%emt 0:00:14]} 24. a3 {[%emt 0:01:13]} Rxh2
{[%emt 0:00:15]} 25. Ne4 {[%emt 0:03:43]} d5 {[%emt 0:03:42]} 26. Nc3 {[%emt 0:
00:00]} e5 {[%emt 0:05:53]} 27. Bf5 {[%emt 0:07:44]} Bxa3 {[%emt 0:00:55]} 28.
Bxd7+ {[%emt 0:02:24]} Kxd7 {[%emt 0:00:09]} 29. Nd1 {[%emt 0:04:30]} Bxb2+ {
[%emt 0:01:03]} 30. Nxb2 {[%emt 0:00:41]} Qa1+ {[%emt 0:00:08]} 0-1